bitfinex-derivatives/quotes_SOLF0:USTF0_20260207
["timestamp","ask_amount","ask_price","bid_price","bid_amount"]
[1770441584352,4.40496546,88.439,88.37,4.44550887]
[1770441584555,4.40496546,88.419,88.37,4.44550887]
[1770441585750,4.40496546,88.419,88.357,10.1927]
[1770441586153,4.40496546,88.399,88.343,10.1944]
[1770441586653,4.40496546,88.399,88.324,4.44550887]
[1770441586954,4.40496546,88.379,88.327,4.44550887]
[1770441587455,4.40496546,88.379,88.281,4.44550887]
[1770441587957,4.40496546,88.379,88.307,4.44550887]
[1770441589353,4.40496546,88.359,88.309,4.44550887]
[1770441593554,4.40496546,88.359,88.29,4.44550887]
[1770441593756,4.40496546,88.353,88.29,4.44550887]
[1770441594757,4.40496546,88.353,88.292,10.2002]
[1770441595163,4.40496546,88.353,88.293,4.44550887]
[1770441596757,9.65822569,88.36,88.306,4.44550887]
[1770441597360,4.40496546,88.368,88.308,4.44550887]
[1770441598059,4.40496546,88.368,88.314,10.1978]
[1770441598555,4.40496546,88.368,88.314,14.64330887]
[1770441600854,4.40496546,88.359,88.297,4.44550887]
[1770441601859,4.40496546,88.356,88.297,4.44550887]
[1770441602957,4.40496546,88.356,88.299,4.44550887]
[1770441604759,4.40496546,88.356,88.301,10.1993]
[1770441604970,4.40496546,88.356,88.301,14.64480887]
[1770441605175,4.40496546,88.356,88.302,4.44550887]
[1770441606568,4.40496546,88.356,88.26,9.65822569]
[1770441606569,4.40496546,88.356,88.313,4.12487221]
[1770441606868,9.65822569,88.36,88.313,4.12487221]
[1770441607167,4.18126837,88.372,88.313,4.12487221]
[1770441607869,9.65822569,88.38,88.315,4.12487221]
[1770441608663,4.18126837,88.388,88.339,4.21634261]
[1770441609866,4.18126837,88.388,88.341,4.21634261]
[1770441610069,158.5,88.447,88.341,4.21634261]
[1770441610070,4.20853049,88.416,88.341,4.21634261]
[1770441610666,4.20853049,88.416,88.357,4.21634261]
[1770441611371,4.20853049,88.413,88.348,10.1938]
[1770441611576,4.20853049,88.399,88.329,4.21634261]
[1770441612070,4.20853049,88.379,88.329,4.21634261]
[1770441613467,9.65822569,88.36,88.314,4.21634261]
[1770441613674,4.20853049,88.359,88.305,10.1987]
[1770441614374,4.20853049,88.37,88.311,4.21634261]
[1770441615766,4.20853049,88.37,88.314,4.21634261]
[1770441616968,4.20853049,88.359,88.299,4.21634261]
[1770441618769,4.20853049,88.354,88.299,4.21634261]
[1770441619180,4.20853049,88.354,88.287,10.2009]
[1770441619472,9.67067537,88.34,88.291,4.21634261]
[1770441620075,9.67067537,88.34,88.295,10.2]
[1770441620668,4.20853049,88.354,88.304,10.1988]
[1770441620877,4.20853049,88.354,88.295,4.21634261]
[1770441622668,4.20853049,88.354,88.299,10.1995]
[1770441626671,9.67067537,88.36,88.307,4.21634261]
[1770441627582,4.20853049,88.369,88.328,10.1961]
[1770441629373,4.20853049,88.359,88.308,4.21634261]
[1770441630079,4.20853049,88.359,88.303,10.199]
[1770441631379,20.1131147,88.38,88.293,10.2002]
[1770441631380,13.87920586,88.34,88.293,10.2002]
[1770441631587,13.87920586,88.34,88.293,14.41654261]
[1770441634883,4.20853049,88.339,88.281,10.2015]
[1770441635278,4.20853049,88.339,88.281,14.41784261]
[1770441635584,4.20853049,88.339,88.282,4.21634261]
[1770441637982,10.1956,88.334,88.282,4.21634261]
[1770441638183,9.67067537,88.34,88.282,4.21634261]
[1770441638184,4.10281631,88.333,88.282,4.21634261]
[1770441639188,9.67067537,88.34,88.282,4.21634261]
[1770441639577,4.10281631,88.344,88.282,4.21634261]
[1770441639883,4.10281631,88.344,88.203,34.0]
[1770441639884,9.67067537,88.38,88.303,4.08149328]
[1770441640080,4.10281631,88.389,88.303,4.08149328]
[1770441640681,4.10281631,88.389,88.336,4.08149328]
[1770441641584,4.10281631,88.389,88.337,10.1951]
[1770441644081,4.10281631,88.389,88.336,4.08149328]
[1770441644477,4.10281631,88.387,88.336,4.08149328]
[1770441644886,4.10281631,88.379,88.319,4.08149328]
[1770441645178,4.10281631,88.379,88.224,27.99508959]
[1770441645179,9.67067537,88.34,88.261,4.08149328]
[1770441646690,9.67067537,88.34,88.286,4.08149328]
[1770441647996,4.10281631,88.339,88.286,4.08149328]
[1770441654496,4.10281631,88.337,88.276,4.08149328]
[1770441654702,4.10281631,88.371,88.278,4.08149328]
[1770441655593,4.10281631,88.371,88.314,10.1977]
[1770441655794,4.10281631,88.371,88.314,14.27919328]
[1770441657798,4.10281631,88.369,88.314,14.27919328]
[1770441657992,4.10281631,88.369,88.317,10.1974]
[1770441660302,4.10281631,88.349,88.3,4.08149328]
[1770441660499,4.10281631,88.369,88.3,4.08149328]
[1770441661498,4.10281631,88.366,88.311,10.1981]
[1770441661692,4.10281631,88.393,88.312,4.08149328]
[1770441661904,4.10281631,88.389,88.312,4.08149328]
[1770441662204,4.10281631,88.389,88.328,4.08149328]
[1770441663706,4.10281631,88.387,88.332,10.1957]
[1770441664503,4.10281631,88.385,88.328,4.08149328]
[1770441664704,4.10281631,88.369,88.271,4.08149328]
[1770441665404,4.10281631,88.369,88.31,4.08149328]
[1770441666411,3.80444564,88.349,88.295,3.88232537]
[1770441667004,13.18815252,88.35,88.295,3.88232537]
[1770441667005,3.80444564,88.347,88.295,3.88232537]
[1770441668906,13.18815252,88.33,88.282,10.2014]
[1770441669203,13.18815252,88.33,88.282,14.33957493]
[1770441669612,13.18815252,88.33,88.282,4.13817493]
[1770441670609,3.86116974,88.329,88.269,14.34117493]
[1770441670811,13.18815252,88.31,88.231,4.13817493]
[1770441672412,13.18815252,88.35,88.253,4.13817493]
[1770441672715,3.86116974,88.349,88.253,4.13817493]
[1770441673507,3.86116974,88.344,88.281,4.13817493]
[1770441674812,3.86116974,88.344,88.283,4.13817493]
[1770441675314,3.86116974,88.344,88.223,20.4166]
[1770441675315,3.86116974,88.389,88.297,4.13817493]
[1770441676113,3.86116974,88.383,88.313,4.13817493]
[1770441676811,3.86116974,88.383,88.316,4.13817493]
[1770441677711,3.86116974,88.383,88.32,4.13817493]
[1770441678118,13.18352271,88.35,88.293,4.13817493]
[1770441678408,3.86116974,88.352,88.293,4.13817493]
[1770441679518,3.86116974,88.398,88.308,4.13817493]
[1770441680715,3.86116974,88.398,88.323,4.13817493]
[1770441681517,3.86116974,88.398,88.325,4.13817493]
[1770441682717,3.86116974,88.398,88.33,4.13817493]
[1770441683220,3.86116974,88.395,88.33,4.13817493]
[1770441683712,3.86116974,88.395,88.332,4.13817493]
[1770441684710,3.86116974,88.395,88.338,4.13817493]
[1770441685917,3.86116974,88.395,88.29,171.85832271]
[1770441685918,3.86116974,88.395,88.34,4.13817493]
[1770441686118,3.86116974,88.379,88.326,4.13817493]
[1770441687615,3.86116974,88.379,88.328,4.13817493]
[1770441688320,3.86116974,88.392,88.33,4.13817493]
[1770441689016,3.86116974,88.411,88.346,4.13817493]
[1770441689622,10.1856,88.421,88.346,4.13817493]
[1770441689623,3.86116974,88.399,88.346,4.13817493]
[1770441690811,34.0,88.456,88.35,4.13817493]
[1770441691011,3.86116974,88.449,88.351,4.13817493]
[1770441691418,3.86116974,88.449,88.392,10.1887]
[1770441691611,3.86116974,88.449,88.393,4.13817493]
[1770441692522,3.86116974,88.449,88.38,4.13817493]
[1770441693918,3.86116974,88.429,88.38,4.13817493]
[1770441696121,3.86116974,88.429,88.353,3.97320609]
[1770441696320,13.18352271,88.43,88.353,3.97320609]
[1770441696321,13.18352271,88.41,88.353,3.97320609]
[1770441696525,3.98808824,88.409,88.353,3.97320609]
[1770441697724,13.18352271,88.39,88.336,3.97320609]
[1770441699719,3.98808824,88.389,88.336,3.97320609]
[1770441700322,13.18352271,88.39,88.28,33.58682271]
[1770441700323,3.98808824,88.424,88.337,3.97320609]
[1770441700627,3.98808824,88.443,88.351,3.97320609]
[1770441701124,3.98808824,88.466,88.387,3.97320609]
[1770441701725,3.98808824,88.466,88.404,3.97320609]
[1770441702333,13.18352271,88.5,88.409,3.97320609]
[1770441702827,13.18352271,88.5,88.401,158.4757]
[1770441702828,13.18352271,88.5,88.433,3.97320609]
[1770441703128,3.98808824,88.509,88.433,3.97320609]
[1770441703930,3.98808824,88.509,88.438,3.97320609]
[1770441704129,3.98808824,88.489,88.421,3.97320609]
[1770441704328,13.18352271,88.47,88.421,3.97320609]
[1770441704835,13.18352271,88.47,88.37,13.18352271]
[1770441704836,3.98808824,88.469,88.4,3.97320609]
[1770441705924,17.17161095,88.49,88.4,3.97320609]
[1770441706332,17.17161095,88.49,88.418,3.97320609]
[1770441707433,17.17161095,88.49,88.428,3.97320609]
[1770441708022,17.17161095,88.49,88.43,3.97320609]
[1770441708423,3.98808824,88.507,88.43,3.97320609]
[1770441709137,13.18352271,88.49,88.432,3.97320609]
[1770441709534,17.17161095,88.49,88.432,3.97320609]
[1770441709935,3.98808824,88.489,88.432,3.97320609]
[1770441710330,3.98808824,88.529,88.432,3.97320609]
[1770441710732,3.98808824,88.529,88.45,3.97320609]
[1770441711435,3.98808824,88.529,88.455,3.97320609]
[1770441712440,3.98808824,88.529,88.466,3.97320609]
[1770441714337,3.98808824,88.509,88.446,3.97320609]
[1770441715741,3.98808824,88.509,88.448,3.97320609]
[1770441718941,3.98808824,88.506,88.431,3.97320609]
[1770441719141,13.18352271,88.49,88.431,3.97320609]
[1770441719344,17.17161095,88.49,88.431,3.97320609]
[1770441719638,3.98808824,88.489,88.431,3.97320609]
[1770441720746,3.98808824,88.489,88.432,3.97320609]
[1770441721246,13.18352271,88.49,88.432,3.97320609]
[1770441722244,3.98808824,88.506,88.448,3.97320609]
[1770441722851,3.98808824,88.506,88.46,10.1809]
[1770441723147,3.98808824,88.506,88.448,3.97320609]
[1770441724849,3.98808824,88.506,88.449,10.1821]
[1770441725251,3.98808824,88.506,88.448,3.97320609]
[1770441725453,3.98808824,88.5,88.438,10.1834]
[1770441725648,3.98808824,88.5,88.439,3.97320609]
[1770441727652,3.98808824,88.5,88.442,10.183]
[1770441728549,3.79470965,88.489,88.439,3.97320609]
[1770441729249,3.79470965,88.504,88.441,3.95883926]
[1770441729750,3.79470965,88.504,88.454,10.1816]
[1770441730255,3.79470965,88.504,88.459,10.181]
[1770441730752,3.79470965,88.529,88.46,3.95883926]
[1770441730953,3.79470965,88.529,88.474,3.95883926]
[1770441732756,3.79470965,88.529,88.479,10.1787]
[1770441733057,3.79470965,88.529,88.48,3.95883926]
[1770441733252,13.18352271,88.53,88.482,3.95883926]
[1770441733458,3.79470965,88.549,88.482,3.95883926]
[1770441734754,3.79470965,88.529,88.482,3.95883926]
[1770441738757,3.79470965,88.527,88.482,3.95883926]
[1770441740056,3.79470965,88.527,88.431,3.95883926]
[1770441740262,3.79470965,88.509,88.431,3.95883926]
[1770441740561,3.79470965,88.524,88.431,3.95883926]
[1770441740962,3.79470965,88.524,88.466,3.95883926]
[1770441741659,13.14193623,88.53,88.47,3.95883926]
[1770441742764,13.14193623,88.53,88.476,3.95883926]
[1770441744164,13.14193623,88.53,88.479,3.95883926]
[1770441744667,13.14193623,88.53,88.482,3.95883926]
[1770441745765,3.79470965,88.529,88.482,3.95883926]
[1770441747264,3.79470965,88.529,88.485,10.1781]
[1770441747464,3.79470965,88.529,88.485,14.13693926]
[1770441747865,3.79470965,88.549,88.486,3.95883926]
[1770441748858,3.79470965,88.549,88.49,3.95883926]
[1770441750372,3.79470965,88.544,88.481,10.1785]
[1770441750668,3.79470965,88.544,88.482,3.95883926]
[1770441751769,3.79470965,88.544,88.484,10.1782]
[1770441752270,3.79470965,88.544,88.485,3.95883926]
[1770441753972,3.79470965,88.544,88.488,10.1777]
[1770441754268,3.79470965,88.541,88.485,3.95883926]
[1770441754465,3.79470965,88.529,88.485,3.95883926]
[1770441755773,3.79470965,88.529,88.486,10.1779]
[1770441756872,4.02620072,88.549,88.497,3.85780067]
[1770441757772,4.02620072,88.549,88.45,13.14193623]
[1770441757773,4.02620072,88.549,88.501,3.85780067]
[1770441758766,4.02620072,88.549,88.508,10.1754]
[1770441758969,4.02620072,88.549,88.488,3.85780067]
[1770441759164,4.02620072,88.549,88.498,10.1765]
[1770441759370,4.02620072,88.549,88.499,3.85780067]
[1770441760475,13.14193623,88.56,88.508,3.85780067]
[1770441760677,4.02620072,88.559,88.508,3.85780067]
[1770441761369,4.02620072,88.572,88.512,3.85780067]
[1770441762779,4.02620072,88.572,88.516,10.1745]
[1770441763281,4.02620072,88.572,88.516,14.03230067]
[1770441763475,4.02620072,88.572,88.517,3.85780067]
[1770441764576,4.02620072,88.559,88.517,3.85780067]
[1770441765179,4.02620072,88.559,88.5,3.85780067]
[1770441766180,4.02620072,88.559,88.503,10.1759]
[1770441766782,4.02620072,88.559,88.504,3.85780067]
[1770441767079,4.02620072,88.559,88.505,10.1758]
[1770441769378,4.02620072,88.555,88.504,3.85780067]
[1770441770174,4.02620072,88.555,88.495,10.1769]
[1770441770376,4.02620072,88.539,88.495,10.1769]
[1770441771585,4.02620072,88.539,88.495,14.03470067]
[1770441772184,4.02620072,88.539,88.496,3.85780067]
[1770441773681,4.02620072,88.553,88.503,3.85780067]
[1770441773886,13.14193623,88.56,88.503,3.85780067]
[1770441774787,4.02620072,88.59,88.523,3.85780067]
[1770441775791,13.14193623,88.58,88.523,3.85780067]
[1770441775990,4.02620072,88.579,88.523,3.85780067]
[1770441778185,4.02620072,88.577,88.523,3.85780067]
[1770441778391,13.14193623,88.56,88.523,3.85780067]
[1770441778588,4.02620072,88.559,88.511,10.175]
[1770441778995,4.02620072,88.559,88.511,14.03280067]
[1770441779292,4.02620072,88.559,88.468,20.3601]
[1770441779293,4.02620072,88.559,88.513,14.03260067]
[1770441779895,4.02620072,88.559,88.514,3.85780067]
[1770441782801,4.02620072,88.559,88.45,13.14193623]
[1770441782802,4.02620072,88.539,88.442,3.85780067]
[1770441783194,13.14193623,88.54,88.451,3.85780067]
[1770441783400,4.90310948,88.54,88.481,3.85780067]
[1770441784706,4.90310948,88.53,88.494,3.85780067]
[1770441785310,4.90310948,88.53,88.496,10.1767]
[1770441785497,4.90310948,88.53,88.497,3.85780067]
[1770441788209,4.02620072,88.554,88.5,3.8412985]
[1770441788409,4.90310948,88.54,88.5,3.8412985]
[1770441789020,4.90310948,88.55,88.5,3.8412985]
[1770441789408,4.90310948,88.54,88.5,3.8412985]
[1770441789810,4.90310948,88.54,88.511,3.99008141]
[1770441790215,3.77134105,88.568,88.517,3.99008141]
[1770441790419,4.90310948,88.55,88.517,3.99008141]
[1770441790612,4.90310948,88.56,88.517,3.99008141]
[1770441791417,4.90310948,88.55,88.517,3.99008141]
[1770441791617,4.90310948,88.55,88.519,10.1742]
[1770441792018,4.90310948,88.55,88.52,3.99008141]
[1770441792516,4.90310948,88.55,88.523,3.99008141]
[1770441792913,4.90310948,88.55,88.524,10.1736]
[1770441793120,4.90310948,88.55,88.523,3.99008141]
[1770441793121,4.90310948,88.57,88.525,3.99008141]
[1770441794817,4.90310948,88.57,88.528,3.99008141]
[1770441799524,4.89972995,88.55,88.516,3.99008141]
[1770441800817,4.89972995,88.55,88.518,3.99008141]
[1770441809924,3.77134105,88.549,88.506,14.16568141]
[1770441810120,4.89972995,88.53,88.493,3.99008141]
[1770441811116,4.89972995,88.52,88.493,3.99008141]
[1770441813128,3.77134105,88.529,88.493,3.99008141]
[1770441814729,4.89972995,88.52,88.493,3.99008141]
[1770441816331,3.77134105,88.529,88.493,3.99008141]
[1770441816925,3.92119693,88.542,88.495,3.93948433]
[1770441817126,4.89972995,88.54,88.495,3.93948433]
[1770441817530,8.82092688,88.54,88.495,3.93948433]
[1770441817725,4.89972995,88.51,88.442,3.93948433]
[1770441818836,4.89972995,88.51,88.469,3.93948433]
[1770441819630,4.89972995,88.5,88.472,3.93948433]
[1770441821035,3.92119693,88.508,88.472,3.93948433]
[1770441821226,4.89972995,88.5,88.472,3.93948433]
[1770441821432,4.89972995,88.49,88.463,10.1805]
[1770441821634,4.89972995,88.49,88.459,14.12048433]
[1770441821833,4.89972995,88.49,88.46,3.93948433]
[1770441822035,4.89972995,88.5,88.46,3.93948433]
[1770441822735,4.89972995,88.49,88.46,3.93948433]
[1770441823439,4.89972995,88.5,88.46,3.93948433]
[1770441823835,4.89972995,88.5,88.462,3.93948433]
[1770441824941,4.89972995,88.5,88.465,10.1803]
[1770441825843,4.89972995,88.5,88.466,3.93948433]
[1770441826145,4.89972995,88.51,88.469,3.93948433]
[1770441826547,8.82092688,88.51,88.469,3.93948433]
[1770441827548,8.82092688,88.51,88.471,10.1796]
[1770441828048,4.89972995,88.5,88.471,10.1796]
[1770441828248,8.82092688,88.51,88.472,3.93948433]
[1770441828443,4.89972995,88.5,88.472,3.93948433]
[1770441828641,2.35017016,88.591,88.433,3.93948433]
[1770441828642,4.89972995,88.48,88.433,3.93948433]
[1770441829858,4.89972995,88.48,88.444,10.1827]
[1770441831157,3.92119693,88.489,88.455,10.1815]
[1770441831358,4.89972995,88.5,88.456,3.93948433]
[1770441831860,4.89972995,88.5,88.4,435.61050164]
[1770441831861,4.89972995,88.47,88.428,3.93948433]
[1770441832851,4.89972995,88.47,88.446,10.1826]
[1770441833561,3.92119693,88.479,88.446,10.1826]
[1770441833761,8.82092688,88.49,88.455,10.1815]
[1770441834061,4.89972995,88.49,88.456,3.93948433]
[1770441834563,4.89972995,88.49,88.455,10.1815]
[1770441834564,4.89972995,88.5,88.464,3.93948433]
[1770441834760,4.89972995,88.51,88.464,3.93948433]
[1770441835060,3.92119693,88.509,88.464,3.93948433]
[1770441835262,4.89972995,88.5,88.464,3.93948433]
[1770441835559,4.89972995,88.49,88.456,10.1813]
[1770441836261,3.92119693,88.499,88.456,14.12078433]
[1770441836963,3.92119693,88.499,88.457,3.93948433]
[1770441837162,3.92119693,88.499,88.458,10.1811]
[1770441839566,3.92119693,88.499,88.467,10.1801]
[1770441839765,3.92119693,88.509,88.467,10.1801]
[1770441843865,4.89972995,88.49,88.456,10.1814]
[1770441844070,4.89972995,88.48,88.443,3.93948433]
[1770441844368,4.89972995,88.49,88.447,3.93948433]
[1770441845071,4.89972995,88.48,88.447,3.93948433]
[1770441845868,4.89972995,88.48,88.385,158.5047]
[1770441845869,4.89972995,88.47,88.434,3.63864974]
[1770441846270,4.89972995,88.46,88.401,3.63864974]
[1770441846472,4.89972995,88.46,88.424,10.185]
[1770441846870,4.89972995,88.46,88.424,13.82364974]
[1770441847267,4.89972995,88.45,88.413,10.1863]
[1770441847473,4.89972995,88.45,88.414,3.63864974]
[1770441848167,3.78084748,88.473,88.414,3.63864974]
[1770441848372,4.89972995,88.47,88.421,3.63864974]
[1770441848768,4.89972995,88.45,88.421,3.63864974]
[1770441849873,4.89972995,88.47,88.421,3.63864974]
[1770441850472,3.8984464,88.469,88.421,3.63864974]
[1770441850677,8.79817635,88.46,88.421,3.63864974]
[1770441852474,3.8984464,88.459,88.421,3.63864974]
[1770441853476,4.89972995,88.45,88.421,3.63864974]
[1770441855186,8.79817635,88.47,88.423,3.70093592]
[1770441855484,4.89972995,88.46,88.423,3.70093592]
[1770441856084,3.8984464,88.459,88.412,3.70093592]
[1770441856882,4.89972995,88.45,88.412,3.70093592]
[1770441857083,4.89972995,88.45,88.414,3.70093592]
[1770441857279,3.8984464,88.459,88.414,3.70093592]
[1770441858685,3.8984464,88.459,88.417,10.1859]
[1770441859185,3.8984464,88.489,88.44,3.70093592]
[1770441859382,3.8984464,88.479,88.44,3.70093592]
[1770441859783,3.8984464,88.479,88.437,10.1835]
[1770441859784,4.90984876,88.47,88.437,10.1835]
[1770441859975,3.8984464,88.479,88.427,3.70093592]
[1770441859976,4.90984876,88.46,88.427,3.70093592]
[1770441860983,3.8984464,88.468,88.427,3.70093592]
[1770441861181,4.90984876,88.46,88.427,3.70093592]
[1770441862285,4.90984876,88.46,88.423,10.1852]
[1770441862483,4.64e-05,88.481,88.436,3.70093592]
[1770441862678,9.02145248,88.548,88.38,20.3803]
[1770441862679,4.90984876,88.51,88.451,3.70093592]
[1770441863780,4.90984876,88.51,88.465,10.1803]
[1770441864577,8.80829516,88.51,88.465,10.1803]
[1770441864982,8.80829516,88.51,88.465,13.88123592]
[1770441866290,3.8984464,88.509,88.465,13.88123592]
[1770441866490,3.8984464,88.509,88.477,10.179]
[1770441866690,4.90984876,88.52,88.477,10.179]
[1770441867697,3.8984464,88.522,88.487,10.1778]
[1770441871193,4.90984876,88.53,88.492,10.1773]
[1770441872688,3.8984464,88.529,88.492,10.1773]
[1770441872894,4.90984876,88.51,88.482,10.1784]
[1770441874593,3.8984464,88.519,88.482,10.1784]
[1770441880597,4.90984876,88.51,88.482,10.1784]
[1770441881998,3.8984464,88.519,88.482,10.1784]
[1770441882498,4.90984876,88.51,88.482,10.1784]
[1770441883993,3.84841629,88.509,88.472,10.1795]
[1770441884198,4.90984876,88.5,88.456,3.73996609]
[1770441884403,3.84841629,88.499,88.456,3.73996609]
[1770441885398,4.90984876,88.51,88.456,3.73996609]
[1770441885704,4.90984876,88.51,88.473,3.73996609]
[1770441886005,4.90984876,88.5,88.473,3.73996609]
[1770441886205,3.84841629,88.512,88.473,3.73996609]
[1770441886403,3.84841629,88.539,88.477,3.73996609]
[1770441886707,4.90984876,88.55,88.501,3.73996609]
[1770441887097,3.84841629,88.551,88.501,3.73996609]
[1770441887802,3.84841629,88.551,88.507,3.73996609]
[1770441888802,3.84841629,88.551,88.51,3.73996609]
[1770441889808,4.90984876,88.55,88.51,3.73996609]
[1770441891102,4.90984876,88.56,88.515,3.73996609]
[1770441891401,8.75826505,88.56,88.515,3.73996609]
[1770441892001,8.75826505,88.56,88.527,10.1732]
[1770441892201,4.90984876,88.57,88.528,3.73996609]
[1770441892607,3.84841629,88.569,88.528,3.73996609]
[1770441892820,3.84841629,88.539,88.442,3.73996609]
[1770441893109,3.84841629,88.539,88.439,20.3667]
[1770441893110,4.90984876,88.52,88.461,3.73996609]
[1770441893505,4.90984876,88.52,88.483,10.1783]
[1770441893703,4.90984876,88.52,88.484,3.73996609]
[1770441893909,4.90984876,88.51,88.484,3.73996609]
[1770441895008,4.90984876,88.52,88.484,3.73996609]
[1770441895211,4.90984876,88.53,88.484,3.73996609]
[1770441895609,8.75826505,88.54,88.484,3.73996609]
[1770441896208,4.90984876,88.53,88.484,3.73996609]
[1770441896809,4.90984876,88.53,88.498,10.1765]
[1770441899711,4.90984876,88.53,88.484,3.73996609]
[1770441899712,4.90984876,88.53,88.508,10.1754]
[1770441899907,4.876e-05,88.53,88.508,10.1754]
[1770441901615,3.84846505,88.53,88.508,10.1754]
[1770441902811,4.90984876,88.52,88.414,6.52620615]
[1770441903013,4.876e-05,88.49,88.431,6.52620615]
[1770441903206,4.90984876,88.5,88.441,6.52620615]
[1770441903412,4.90984876,88.5,88.469,10.1799]
[1770441904509,10.48801021,88.568,88.484,10.1781]
[1770441904712,4.90984876,88.52,88.484,10.1781]
[1770441906414,4.90984876,88.51,88.47,16.74834088]
[1770441906615,4.90984876,88.51,88.471,6.56990667]
[1770441907818,4.90984876,88.51,88.474,10.1793]
[1770441909817,10.1695,88.56,88.482,6.53573755]
[1770441910022,4.90984876,88.52,88.482,6.53573755]
[1770441910320,4.90984876,88.53,88.482,6.53573755]
[1770441910816,4.90984876,88.52,88.484,10.1781]
[1770441911418,4.90984876,88.52,88.484,16.72891827]
[1770441911617,4.90984876,88.52,88.487,10.1778]
[1770441911822,4.90984876,88.53,88.487,16.72861827]
[1770441912120,4.90984876,88.53,88.488,6.55081827]
[1770441912320,4.90984876,88.53,88.492,10.1772]
[1770441912717,4.90984876,88.53,88.492,16.72802133]
[1770441913420,4.90984876,88.54,88.497,6.54843546]
[1770441913921,4.90984876,88.55,88.497,6.54843546]
[1770441914122,4.90984876,88.54,88.502,6.54843546]
[1770441914319,4.876e-05,88.54,88.502,6.54843546]
[1770441914515,4.90984876,88.55,88.502,6.54843546]
[1770441915719,4.90984876,88.56,88.508,6.55187214]
[1770441916022,2.35017016,88.591,88.51,4.90984876]
[1770441916223,4.90984876,88.58,88.531,6.55187214]
[1770441917221,2.35017016,88.591,88.544,6.53722426]
[1770441917425,4.90984876,88.59,88.544,6.53722426]
[1770441918136,4.90984876,88.59,88.53,4.90984876]
[1770441918137,7.016e-05,88.591,88.551,6.53722426]
[1770441918922,7.016e-05,88.591,88.502,20.3522]
[1770441918923,7.016e-05,88.591,88.569,6.53722748]
[1770441919323,7.016e-05,88.591,88.583,6.53142067]
[1770441919728,7.016e-05,88.591,88.573,10.168]
[1770441920026,7.016e-05,88.591,88.567,6.53142067]
[1770441921021,4.90984876,88.59,88.567,6.53142067]
[1770441921325,4.90984876,88.59,88.545,6.53674341]
[1770441921525,4.89721097,88.59,88.547,6.53674341]
[1770441922328,4.89721097,88.59,88.551,6.5367465]
[1770441922528,7.016e-05,88.591,88.537,6.5367465]
[1770441922825,7.016e-05,88.591,88.49,439.32368082]
[1770441922826,4.89721097,88.56,88.501,6.5367465]
[1770441923626,4.89721097,88.57,88.501,6.5367465]
[1770441923831,4.89721097,88.57,88.525,6.65119601]
[1770441925828,4.89721097,88.57,88.418,33.94]
[1770441926033,10.491523,88.546,88.33,80.25646058]
[1770441926326,158.2409,88.533,88.341,80.25646058]
[1770441926528,33.94,88.492,88.351,80.25646058]
[1770441926726,33.94,88.492,88.204,158.8297]
[1770441926727,4.89721097,88.41,88.341,80.25646058]
[1770441927236,33.94,88.452,88.361,79.37052564]
[1770441927429,13.17205449,88.43,88.361,79.37052564]
[1770441927929,13.17205449,88.44,88.34,79.37052564]
[1770441928125,13.17205449,88.44,88.286,1.96925584]
[1770441928126,13.17205449,88.4,88.29,13.17205449]
[1770441928322,13.17205449,88.4,88.286,1.96925584]
[1770441928323,13.17205449,88.38,88.286,1.96925584]
[1770441928734,13.17205449,88.34,88.23,13.17205449]
[1770441928927,13.17205449,88.32,88.215,10.2092]
[1770441929140,13.17205449,88.33,88.216,1.97155969]
[1770441929334,13.17205449,88.35,88.231,10.2073]
[1770441929529,13.17205449,88.36,88.25,13.17205449]
[1770441929930,13.17205449,88.37,88.27,13.17205449]
[1770441930133,13.17205449,88.37,88.271,40.1361406]
[1770441930329,13.17205449,88.31,88.233,40.11721731]
[1770441930528,13.17205449,88.27,88.211,40.11721731]
[1770441930732,13.17205449,88.31,88.211,40.11721731]
[1770441930939,13.17205449,88.33,88.231,40.11721731]
[1770441931231,13.17205449,88.29,88.212,40.64268739]
[1770441931432,13.17205449,88.27,88.212,40.64268739]
[1770441932139,13.17205449,88.29,88.212,40.64268739]
[1770441932338,441.696468,88.338,88.212,40.64268739]
[1770441932339,13.17205449,88.31,88.212,40.64268739]
[1770441932736,13.17205449,88.31,88.214,40.64903061]
[1770441932933,13.17205449,88.31,88.221,40.64903061]
[1770441933136,13.17205449,88.33,88.23,13.17205449]
[1770441933437,13.17205449,88.33,88.171,227.70301461]
[1770441933438,13.17205449,88.31,88.231,40.319772]
[1770441933828,13.17205449,88.33,88.231,40.319772]
[1770441934037,13.17205449,88.31,88.231,40.319772]
[1770441935832,441.696468,88.338,88.231,40.319772]
[1770441936145,13.17205449,88.33,88.231,40.319772]
[1770441936737,13.17205449,88.33,88.211,158.8183]
[1770441936738,13.17205449,88.33,88.233,40.27290232]
[1770441937144,10.1902,88.381,88.24,13.17205449]
[1770441937344,13.17205449,88.35,88.243,40.60729953]
[1770441937944,13.17205449,88.35,88.271,40.60729953]
[1770441938146,13.17205449,88.37,88.271,40.60729953]
[1770441939050,13.17205449,88.4,88.301,40.61063391]
[1770441939250,13.17205449,88.42,88.321,40.49763949]
[1770441939447,13.17205449,88.43,88.341,40.49763949]